Cogmind - Beta 14 @@@ ROGUE MODE // 2024.10.31 @ 14:55:08 Player: Xellophane Result: Destroyed by as-35876 with Assembled F-torch Performance ------------- Evolutions (1) 500 Regions Visited (4) 800 Robots Destroyed (75) 375 Value Destroyed (1646) 1646 Prototype IDs (2) 40 Alien Tech Used (0) 0 Bonus (52) 52 TOTAL SCORE: 3413 Bonus ------- Follower Combat Kills 52 Cogmind --------- Core Integrity 0/400 Matter 122/300 Energy 91/100 System Corruption 7% Temperature Hot (240) Movement Core (1400) Ox27 Location -9/Mines Parts ------- > --- POWER (1) -------- (None) > --- PROPULSION (3) --- (None) > --- UTILITY (3) ------ Huge Storage Unit > --- WEAPON (2) ------- Small Laser Improved Assault Rifle > --- INVENTORY (25) --- Light Nuclear Core Light Nuclear Core Improved Heat Sink Improved Signal Interpreter Improved Signal Interpreter Shield Generator Shield Generator Medium Laser Improved Assault Rifle Improved Assault Rifle Rocket Launcher Rocket Launcher Improved Grenade Launcher Improved Grenade Launcher Improved Grenade Launcher Improved Grenade Launcher Mining Laser Peak State ------------ > --- POWER ------------ Light Ion Engine > --- PROPULSION ------- Light Treads Light Treads Light Treads > --- UTILITY ---------- Huge Storage Unit Visual Processing Unit Improved Signal Interpreter > --- WEAPON ----------- Heavy Assault Rifle Heavy Assault Rifle > --- INVENTORY -------- Ion Engine Improved Ion Engine Light Nuclear Core Light Nuclear Core Light Treads Improved Heat Sink Improved Signal Interpreter Improved Signal Interpreter Shield Generator Shield Generator Medium Laser Small Laser Heavy Assault Rifle Improved Assault Rifle Improved Assault Rifle Improved Assault Rifle Improved Assault Rifle Rocket Launcher Rocket Launcher Rocket Launcher Rocket Launcher Improved Grenade Launcher Mining Laser [Rating: 19] Favorites ----------- Power Light Ion Engine Engine Light Ion Engine Propulsion Light Treads Treads Light Treads Leg Aluminum Leg Utility Huge Storage Unit Device Seismic Detector Storage Huge Storage Unit Processor Improved Signal Interpreter Weapon Heavy Assault Rifle Energy Gun Small Laser Ballistic Gun Heavy Assault Rifle Launcher Rocket Launcher Build | -11 -10 -10 -9 -9 ------- Run | Yrd Mat Min Mat Min Slots Evolved 2 | . . . 2 . Power . | . . . . . Propulsion 1 | . . . 1 . Utility 1 | . . . 1 . Weapon . | . . . . . Parts Attached 64 | 9 9 9 28 9 Power 9 | 2 1 2 2 2 Engine 9 | 2 1 2 2 2 Core . | . . . . . Reactor . | . . . . . Propulsion 18 | 2 3 1 11 1 Treads 16 | 2 3 1 9 1 Leg 2 | . . . 2 . Wheel . | . . . . . Hover . | . . . . . Flight . | . . . . . Utility 9 | 3 1 1 4 . Device 4 | 2 . 1 1 . Storage 2 | 1 1 . . . Processor 3 | . . . 3 . Hackware . | . . . . . Protection . | . . . . . Artifact . | . . . . . Weapon 28 | 2 4 5 11 6 Energy Gun 9 | 2 2 2 2 1 Energy Cannon . | . . . . . Ballistic Gun 8 | . . 1 5 2 Ballistic Cannon . | . . . . . Launcher 11 | . 2 2 4 3 Special Weapon . | . . . . . Impact Weapon . | . . . . . Slashing Weapon . | . . . . . Piercing Weapon . | . . . . . Special Melee Weapon . | . . . . . Unidentified Prototypes 1 | . . . 1 . Parts Lost 33 | . 1 6 13 13 Power 8 | . 1 2 2 3 Propulsion 12 | . . 2 6 4 Utility 4 | . . 1 1 2 Weapon 9 | . . 1 4 4 Highest Loss Streak 8 | . 1 4 3 8 To Critical Strikes . | . . . . . Average Slot Usage (%) 95 | . 100 91 97 91 Engine 12 | . 14 13 10 10 Treads 26 | . 28 21 29 27 Leg 1 | . . . 2 . Device 8 | . 14 13 6 . Storage 12 | . 14 14 11 11 Processor 8 | . . . 14 20 Energy Gun 12 | . 25 20 5 . Ballistic Gun 10 | . . 6 14 19 Launcher 1 | . 2 . 1 1 Peak Build Rating 19 | 9 10 10 19 19 Average Rating 12 | 6 7 9 16 17 On Entrance 9 | . 7 10 9 19 Naked Turns . | . . . . . Heaviest Build 93 | 14 89 89 93 92 Greatest Support 60 | 40 40 40 60 60 Greatest Overweight (x) 30 | . 2 4 4 30 Average Overweight (x) 1 | . 1 2 1 1 Largest Inventory Capacity 25 | 8 25 25 25 25 Average Capacity 24 | 7 24 25 25 25 Most Carried 25 | 8 20 21 25 24 Average Carried 19 | 4 10 19 23 22 Final Capacity 25 | 8 25 25 25 25 Final Carried 24 | 7 20 21 24 17 Class Distribution -------------------- 52% | Mutant 47% | Scavenger-Mutant Dominant Class ---------------- Mutant | -10/Materials Mutant | -10/Mines Scavenger-Mutant | -9/Materials Scavenger-Mutant | -9/Mines Resources | -11 -10 -10 -9 -9 ----------- Run | Yrd Mat Min Mat Min Matter Collected 1284 | 268 92 281 619 24 Remotely . | . . . . . Salvage Created 2223 | 262 191 363 1211 196 Parts 173 | 26 19 22 100 6 Haulers Intercepted 1 | . . . 1 . Recyclers Shooed 3 | 1 1 . 1 . Parts Field Recycled . | . . . . . Retrieved Matter . | . . . . . Parts Self-Destructed . | . . . . . Prevented . | . . . . . Kills | -11 -10 -10 -9 -9 ------- Run | Yrd Mat Min Mat Min Combat Hostiles Destroyed 67 | . 9 11 29 18 Guns 41 | . 1 7 24 9 AOE 26 | . 8 4 5 9 Classes Destroyed 11 | 3 3 . 4 1 Worker 4 | 2 . 1 1 . Builder 2 | . 1 1 . . Tunneler 10 | 9 . 1 . . Hauler 1 | . . . 1 . Recycler 4 | 1 . 1 2 . Watcher 1 | . . . 1 . Swarmer 22 | . 3 6 10 3 Grunt 22 | . 6 5 10 1 Duelist 1 | . . . 1 . Sentry 8 | . . . 8 . Assembled 14 | . . . . 14 Best Kill Streak 9 | 4 4 3 4 9 Combat Bots Only 9 | . 4 3 3 9 Max Kills in Single Turn 3 | 1 2 2 2 3 Gunslinging . | . . . . . Exploded 3 | . 2 2 2 3 Melee . | . . . . . Uniques/NPCs Destroyed . | . . . . . Combat | -11 -10 -10 -9 -9 -------- Run | Yrd Mat Min Mat Min Hostile Shots Fired 359 | . 20 101 171 67 Missed 100 | . 4 32 51 13 Damage Taken 3828 | . 241 796 1504 1287 Core 649 | . 55 186 174 234 Absorbed by Shields . | . . . . . Core Remaining (%) 51 | 100 . 3 . . Volleys Fired 217 | 30 13 45 100 29 Largest 2 | 2 2 2 2 2 Hottest 90 | 90 90 90 90 63 Shots Fired 374 | 57 21 79 164 53 Gun 352 | 57 14 74 160 47 Cannon . | . . . . . Launcher 22 | . 7 5 4 6 Special . | . . . . . Kinetic 166 | . . 22 110 34 Thermal 186 | 57 14 52 50 13 Explosive 22 | . 7 5 4 6 Electromagnetic . | . . . . . Robot Hit Streak 12 | 4 4 9 12 6 Robot Miss Streak 5 | 5 2 3 4 3 Penetration Max . | . . . . . Secondary Targets 3 | . . . 2 1 Max Gunslinging Chain 1 | . . . 1 1 Shots Hit Robots 218 | 30 12 45 97 34 Core Hits 136 | 13 21 22 50 30 Critical Kills 1 | . . . 1 . Critical Parts Destroyed 1 | . . . 1 . Critical Strikes 10 | 3 1 . 6 . Burn 8 | 3 1 . 4 . Destroy 2 | . . . 2 . Melee Attacks . | . . . . . Impact . | . . . . . Slashing . | . . . . . Piercing . | . . . . . Sneak Attacks . | . . . . . Combat Hostiles . | . . . . . Follow-up Attacks . | . . . . . Damage Inflicted 4456 | 386 679 818 1690 883 Guns 2666 | 386 101 483 1286 410 Cannons . | . . . . . Explosions 1790 | . 578 335 404 473 Melee . | . . . . . Ramming . | . . . . . Kinetic 1356 | . . 137 922 297 Thermal 1310 | 386 101 346 364 113 Explosive 1790 | . 578 335 404 473 Electromagnetic . | . . . . . Impact . | . . . . . Slashing . | . . . . . Piercing . | . . . . . Highest Corruption 7 | . . . . 7 Average Corruption 5 | . . . . 5 Corruption Purged . | . . . . . Corruption Blocked . | . . . . . Effects 1 | . . . . 1 Heat Flow Errors 1 | . . . . 1 Overload Shots . | . . . . . Overflow Damage 16 | . . 7 . 9 Projectiles . | . . . . . Explosions 16 | . . 7 . 9 Melee . | . . . . . Knockbacks . | . . . . . Impact . | . . . . . Kinetic . | . . . . . Secondary . | . . . . . Self-Inflicted Damage 140 | . 44 96 . . Shots 9 | . 5 4 . . Rammed . | . . . . . Targets Rammed . | . . . . . Kicked . | . . . . . Crushed . | . . . . . Highest Temperature 270 | 270 74 210 105 266 Average Temperature 67 | 101 33 60 22 251 Received Heat Transfer 867 | . 102 171 474 120 Effects 1 | 1 . . . . Energy Bleed 1 | 1 . . . . Siege Activations . | . . . . . Robots Corrupted . | . . . . . Combat Hostiles . | . . . . . Parts Fried . | . . . . . Impact Corruptions . | . . . . . Robots Melted . | . . . . . Combat Hostiles . | . . . . . Parts Melted 14 | 5 2 1 3 3 Heat Transferred 4004 | 1239 370 847 1298 250 Parts Sabotaged . | . . . . . Parts Stolen . | . . . . . Parts Stripped . | . . . . . Power Chain Reactions . | . . . . . Alert | -11 -10 -10 -9 -9 ------- Run | Yrd Mat Min Mat Min Peak Influence 328 | 60 283 130 328 149 Initial 114 | . 39 51 11 114 Average 110 | 26 107 61 151 88 Maximum Alert Level 1 | . 1 . 1 . Low Security (%) 83 | 100 89 100 65 100 Level 1 16 | . 10 . 34 . Level 2 . | . . . . . Level 3 . | . . . . . Level 4 . | . . . . . Level 5 . | . . . . . High Security . | . . . . . Max Security . | . . . . . Squads Dispatched 4 | . 2 . 2 . Investigation 2 | . . . 2 . Extermination . | . . . . . Reinforcement 2 | . 2 . . . Assault . | . . . . . Garrison . | . . . . . Intercept . | . . . . . Searches Triggered . | . . . . . Construction Impeded . | . . . . . Haulers Reinforced . | . . . . . Active Scanning Responses . | . . . . . Cargo Convoy Interrupts . | . . . . . Stealth | -11 -10 -10 -9 -9 --------- Run | Yrd Mat Min Mat Min Distress Signals 4 | . . . 4 . Communications Jammed . | . . . . . Distress Signals . | . . . . . Times Spotted 98 | . 19 12 43 24 Peak Tracking Total 8 | . 4 3 4 8 Tactical Retreats 4 | . 1 . 3 . Traps | -11 -10 -10 -9 -9 ------- Run | Yrd Mat Min Mat Min Traps Triggered 4 | . 3 . 1 . Indirectly . | . . . . . Trap Hack Attempts . | . . . . . Triggered . | . . . . . Disarmed . | . . . . . Reprogrammed . | . . . . . Reused . | . . . . . Traps Extracted . | . . . . . Installed . | . . . . . Triggered . | . . . . . Machines | -11 -10 -10 -9 -9 ---------- Run | Yrd Mat Min Mat Min Machines Disabled 8 | . 4 . 3 1 Max in Single Turn 2 | . 1 . 2 1 Machines Repaired . | . . . . . Machines Dismantled . | . . . . . Machines Sabotaged . | . . . . . Overloaded Fab Kills . | . . . . . Hacking | -11 -10 -10 -9 -9 --------- Run | Yrd Mat Min Mat Min Machines Accessed 6 | . 3 . 3 . Terminals 5 | . 3 . 2 . Fabricators . | . . . . . Repair Stations . | . . . . . Recycling Units . | . . . . . Scanalyzers 1 | . . . 1 . Garrison Access . | . . . . . Total Hacks 25 | . 18 . 7 . Successful 11 | . 8 . 3 . Failed 14 | . 10 . 4 . Catastrophic 2 | . 2 . . . Database Lockouts . | . . . . . Manual 16 | . 11 . 5 . Terminals 23 | . 18 . 5 . Fabricators . | . . . . . Repair Stations . | . . . . . Recycling Units . | . . . . . Scanalyzers 2 | . . . 2 . Garrison Access . | . . . . . Terminal Hacks 9 | . 8 . 1 . Record 2 | . 2 . . . Level Access Points 1 | . 1 . . . Branch Access Points 1 | . 1 . . . Emergency Access Points 1 | . 1 . . . Scanalyzer Index 1 | . . . 1 . Alert Level 1 | . 1 . . . Hauler Manifests 1 | . 1 . . . Zone Layout 1 | . 1 . . . Fabricator Hacks . | . . . . . Repair Station Hacks . | . . . . . Recycling Unit Hacks . | . . . . . Scanalyzer 2 | . . . 2 . Insert Component 1 | . . . 1 . Analyze 1 | . . . 1 . Garrison Access Hacks . | . . . . . Unauthorized Hacks . | . . . . . Terminals . | . . . . . Fabricators . | . . . . . Repair Stations . | . . . . . Recycling Units . | . . . . . Scanalyzers . | . . . . . Garrison Access . | . . . . . Data Cores Recovered . | . . . . . Used . | . . . . . Hacking Detections 6 | . 3 . 3 . Full Trace Events 2 | . 1 . 1 . Feedback Events . | . . . . . Feedback Blocked . | . . . . . Robot Schematics Acquired . | . . . . . Robots Built . | . . . . . Authchips . | . . . . . Time . | . . . . . Total Robot Build Rating . | . . . . . Part Schematics Acquired 1 | . . . 1 . Parts Built . | . . . . . Authchips . | . . . . . Time . | . . . . . Total Part Build Rating . | . . . . . Parts Repaired . | . . . . . Time . | . . . . . Parts Recycled . | . . . . . Recycled Matter . | . . . . . Retrieved Matter . | . . . . . Retrieved Components . | . . . . . Parts Scanalyzed 1 | . . . 1 . Part Schematics Acquired 1 | . . . 1 . Parts Damaged . | . . . . . Bothacking | -11 -10 -10 -9 -9 ------------ Run | Yrd Mat Min Mat Min Used RIF Installer . | . . . . . Robots Hacked . | . . . . . Non-combat . | . . . . . Combat . | . . . . . Robot Hacks Applied . | . . . . . Relay Couplers Released . | . . . . . Fabnet Peak Effective % . | . . . . . Robots Rewired . | . . . . . Allies Hacked . | . . . . . Hacks Repelled . | . . . . . Allies | -11 -10 -10 -9 -9 -------- Run | Yrd Mat Min Mat Min Total Allies 3 | . . . . 3 Largest Group 3 | . . . . 3 Highest-Rated Group 40 | . . . . 40 Highest-Rated Ally 16 | . . . . 16 Total Orders 1 | . . . . 1 FOLLOW 1 | . . . . 1 Ally Attacks 22 | . . . . 22 Total Damage 244 | . . . . 244 Kills 2 | . . . . 2 Allies Corrupted 1 | . . . . 1 Allies Melted . | . . . . . Intel | -11 -10 -10 -9 -9 ------- Run | Yrd Mat Min Mat Min Robot Analysis Total . | . . . . . Derelict Logs Recovered 4 | . . 2 . 2 Drone Launches . | . . . . . Drone Recoveries . | . . . . . Exploration | -11 -10 -10 -9 -9 ------------- Run | Yrd Mat Min Mat Min Turns Passed 6476 | 254 1125 1597 2829 671 Spaces Moved 1993 | 91 334 383 969 216 Core 8 | 5 . . . 3 Treads 1924 | 86 334 383 908 213 Legs 61 | . . . 61 . Wheels . | . . . . . Hover . | . . . . . Flight . | . . . . . Fastest Speed 50 | 50 160 320 240 240 Average Speed 283 | 153 310 378 254 258 Slowest Speed 1550 | 160 320 480 400 1550 Overloaded Moves . | . . . . . Propulsion Burnouts . | . . . . . Robots Hopped . | . . . . . Cave-ins Triggered . | . . . . . Exploration Rate (%) 55 | 6 61 86 68 54 Regions Visited 4 Branch Regions 2 Pre-discovered Areas 1 | . . . . 1 Known Exits Taken 3 | . 1 1 1 . Unknown Exits Taken 1 | 1 . . . . Scrap Searched 2 | . . 1 . 1 Spaces Dug 12 | . . 12 . . Terrain Destroyed 122 | . 22 49 19 32 Melee . | . . . . . Projectile . | . . . . . AOE 122 | . 22 49 19 32 Terrain Rammed . | . . . . . Walls Destroyed . | . . . . . Machines Disabled . | . . . . . Actions | -11 -10 -10 -9 -9 --------- Run | Yrd Mat Min Mat Min Total 2447 | 147 398 451 1174 277 Wait 88 | . 28 9 28 23 Move 1989 | 90 333 382 968 216 Hop . | . . . . . Pick Up 65 | 12 14 6 33 . Fast Attach 12 | 7 3 . 2 . Attach 30 | 2 1 5 15 7 Detach 1 | 1 . . . . Swap 23 | . 5 4 12 2 Drop 22 | 5 1 . 16 . Fire 217 | 30 13 45 100 29 Melee . | . . . . . Ram . | . . . . . Kick . | . . . . . Crush . | . . . . . Escape Stasis . | . . . . . Rewire . | . . . . . Trap . | . . . . . Miscellaneous . | . . . . . Route ------- -11/Scrapyard -10/Materials (discovered 5 exits: *Mat x3 / *Min x2) -10/Mines (discovered 2 exits: *Mat x2) -9/Materials (discovered 4 exits: *Mat x2 / *Min / *Sto) -9/Mines (discovered 1 exit: *Mat) History --------- Turn | Location | Event 8 | -11/Scrapyard | Discovered new exit (range 15) 255 | -11/Scrapyard | Entered Materials 308 | -10/Materials | Build established: Mutant 524 | -10/Materials | Identified exit to Materials 999 | -10/Materials | Identified exit to Mines 1380 | -10/Materials | Entered Mines 1394 | -10/Mines | Met a Derelict bent on vengeance 1940 | -10/Mines | Learned Materials garrison access intel 2107 | -10/Mines | Core integrity fell below 50% 2215 | -10/Mines | Core integrity fell below 20% 2243 | -10/Mines | Lost 4 parts (1p1n1u1w) 2495 | -10/Mines | Learned Materials security intel 2712 | -10/Mines | Discovered exit to Materials (range 9) 2886 | -10/Mines | Discovered exit to Materials (range 8) 2977 | -10/Mines | Entered Materials 2977 | -9/Materials | Evolved 2 slots: Propulsion x1, Utility x1 3080 | -9/Materials | Discovered new exit (range 8) 3123 | -9/Materials | Identified exit to Storage 3547 | -9/Materials | Build established: Scavenger-Mutant 3667 | -9/Materials | Discovered new exit (range 3) 3670 | -9/Materials | Identified exit to Materials 4573 | -9/Materials | Lost 3 parts (1p2n) 4733 | -9/Materials | Discovered exit to Materials (range 4) 4874 | -9/Materials | Discovered new exit (range 7) 4886 | -9/Materials | Identified exit to Mines 5806 | -9/Materials | Entered Mines 5818 | -9/Mines | Learned location of Zion (-7) 5871 | -9/Mines | Assisted by bots powering up and referring to "LRC-V3" 6135 | -9/Mines | Discovered exit to Materials (range 9) 6266 | -9/Mines | Learned location of 1 exit from Lower Caves 6295 | -9/Mines | Assembled infested the area 6339 | -9/Mines | Core integrity fell below 50% 6398 | -9/Mines | Lost 8 parts (2p4n2w) 6402 | -9/Mines | Destroyed 9 combat bots 6444 | -9/Mines | Core integrity fell below 20% 6477 | -9/Mines | Destroyed by as-35876 with Assembled F-torch Last Messages --------------- 06449_ U-05 Engineer lays Concrete. 06450_ Knocked back. 06451_ K-01 Serf collects debris. 06456_ System corrupted: Heat flow error (+267). 06457_ U-05 Engineer lays Concrete. 06458_ K-01 Serf collects debris. 06459_ U-05 Engineer builds a Wall. 06460_ Knocked back. 06462_ K-01 Serf collects debris. 06464_ U-05 Engineer lays Concrete. 06465_ K-01 Serf collects debris. 06465_ Destroyed Asb. Hover Unit. 06466_ U-05 Engineer builds a Wall. 06468_ K-01 Serf collects debris. 06468_ as-91968 destroyed. 06470_ U-05 Engineer lays Concrete. 06471_ as-98693 destroyed. 06471_ U-05 Engineer lays Concrete. 06472_ U-05 Engineer builds a Wall. 06473_ U-05 Engineer lays Concrete. Map ----- +----------------------------------------------------+ | ??????????????????????????? ???????????????# | | ??????????????????????????? ???????????????# | | ??????????????????????????# #??????????????## | | ??????????????????????????# #???????????????## | | ??????????????????????????# #????????????????## | | ??????????????????????????# #?????????????????# | | ??????????????????????????# #????????????????## | | ????????????##???????????? #????????????????# | | ???????????## #???????????# ########?????????# | | ???????????# #?????????## # #?????????## | | ???????????# ##?????## % ""##?????????## | | ??????????## #????## " #??????????# | | ?????????## #????# #??????????# | | ?????????# ##??## # % % ##??????????# | | ?????????# #### # =% #??????????# | | ??????????# # != ############ | | ??????????### #### ! t |% % %] | | ????????????## #?### # ### # [%= | | ?????????????## #### # = ################### | | ??????????????# # ### #?????????????????? | | ??????????????# # # ##????????????????? | | ??????????????# #### # %a* #????????????????? | | ??????????????# ##??# # %%%=% #????????????????? | | ??????????????##????# # ! #????????????????? | | ??????????????????### %a #????????????????? | | ??????????????????# @ #????????????????? | | ????????????????# #???????????????? | | ???????????????# ??????????? | | ??????????????# ?????????? | | ?????????????# ##?????????? | | ???????????? ## ##??????????? | | ?????????? ## ####?# #???????????? | | ????????? #?## ###????? #??????????? | | ?????????? ???## ##???????? ??????????? | | ?????????? ?????# ??????????? ??????????? | | ?????????? ??????# #??????????? ??????????? | | ??????????? ???????###??????????????????????????? | | ?????????????????????????????????????????????????? | | ?????????????????????????????????????????????????? | | ?????????????????????????????????????????????????? | | ?????????????????????????????????????????????????? | | ?????????????????????????????????????????????????? | | ?????????????????????????????????????????????????? | | ?????????????????????????????????????????????????? | | ?????????????????????????????????????????????????? | | | | | | | | | | | +----------------------------------------------------+ Best States ------------- Heat Dissipation 38 Energy Generation 12 Energy Capacity 265 Matter Stores 300 Matter Capacity 300 Sight Range 18 Terrain Scan Range 16 Terrain Scan Density 10 Evasion (%) 40 Recoil Reduction 3 Item Schematics ----------------- Imp. Assault Rifle | -9/Materials | Scanalyzed Robot Schematics ------------------ None Fabricated ------------ Nothing Alien Tech Used ----------------- None Achievements -------------- Close Call Challenges ------------ None Game ------ Seed MetaBombWheel Manual? 0 Play Time 00:51:55 Cumulative 5.8 hours Start 2024.10.31 @ 13:59:57 End 2024.10.31 @ 14:55:08 Sessions 1 Manual Loads 0 Difficulty Rogue Special Mode None Game No. 9 Rogue 9 Adventurer 0 Explorer 0 Win Type - Total 0 Types 0/0/0/0/0/0/0/0/0 Lore% 1 Gallery% 6 Achievement% 8 Wizard Run 0 Options --------- Layout 0 ASCII 0 Keyboard 1 Movement Numpad Keybinds 0 Fullscreen 2 Font 18/SmallcapsGlow Map View 76x50 Zoom Use 0% Tactical HUD 1 Map Filters NONE Filters NONE Steam 1 RUN: 4c1b6c31-2b13-4423-b20b-e8d2af22382b